fUST/lending_fUST_20250326
["ID","MTS","AMOUNT","RATE_DAILY","PERIOD"]
[356708199,1742999257669,-150.0,0.00046885,31]
[356708200,1742999257709,-207.0,0.00046885,31]
[356708201,1742999257749,-2492.46437505,0.00046885,120]
[356708202,1742999257788,-2100.0,0.00046885,60]
[356708203,1742999257827,-416070.37386287,0.00046885,30]
[356708206,1742999263397,-83928.62614713,0.00046885,30]
[356708207,1742999264440,1008.75228067,0.00046885,30]
[356708232,1742999354131,-171.44351099,0.00010959,2]
[356708282,1742999432949,-9.87956301,0.00010959,2]
[356708284,1742999432959,-500.0,0.0001936,2]
[356708286,1742999432970,-500.0,0.0001936,2]
[356708288,1742999432980,-477.67243446,0.0001936,2]
[356708290,1742999432988,-24308.40834875,0.00019361,2]
[356708293,1742999432996,-3781.4203879,0.00019526,2]
[356708295,1742999433005,-500.0,0.00019634,2]
[356708297,1742999433014,-500.0,0.00019634,2]
[356708299,1742999433024,-174.4432553,0.00019689,2]
[356708301,1742999433034,-500.0,0.00019689,2]
[356708303,1742999433045,-173.27820067,0.00019689,2]
[356708304,1742999433057,-500.0,0.00019689,2]
[356708306,1742999433067,-500.0,0.00019689,2]
[356708308,1742999433077,-500.0,0.00019689,2]
[356708310,1742999433087,-251.68440146,0.00019689,2]
[356708311,1742999433102,-500.0,0.00019689,2]
[356708312,1742999433112,-500.0,0.00019689,2]
[356708313,1742999433122,-500.0,0.00019689,2]
[356708314,1742999433133,-500.0,0.00019689,2]
[356708315,1742999433143,-500.0,0.00019689,2]
[356708316,1742999433154,-500.0,0.00019689,2]
[356708317,1742999433164,-634.00669385,0.00019689,2]
[356708318,1742999433174,-500.0,0.00019689,2]
[356708319,1742999433184,-500.0,0.00019689,2]
[356708320,1742999433194,-500.0,0.00019689,2]
[356708321,1742999433204,-500.0,0.00019689,2]
[356708322,1742999433214,-500.0,0.00019689,2]
[356708323,1742999433224,-500.0,0.00019689,2]
[356708324,1742999433233,-500.0,0.00019689,2]
[356708325,1742999433243,-500.0,0.00019689,2]
[356708326,1742999433252,-500.0,0.00019689,2]
[356708327,1742999433262,-500.0,0.00019689,2]
[356708328,1742999433272,-500.0,0.00019689,2]
[356708329,1742999433283,-500.0,0.00019689,2]
[356708330,1742999433293,-500.0,0.00019689,2]
[356708331,1742999433303,-500.0,0.00019689,2]
[356708332,1742999433313,-500.0,0.00019689,2]
[356708333,1742999433323,-500.0,0.00019689,2]
[356708334,1742999433332,-500.0,0.00019689,2]
[356708335,1742999433344,-500.0,0.00019689,2]
[356708336,1742999433355,-500.0,0.00019689,2]
[356708337,1742999433365,-500.0,0.00019689,2]
[356708338,1742999433376,-500.0,0.00019689,2]
[356708339,1742999433387,-500.0,0.00019689,2]
[356708340,1742999433398,-500.0,0.00019689,2]
[356708341,1742999433408,-500.0,0.00019689,2]
[356708342,1742999433418,-500.0,0.00019689,2]
[356708343,1742999433428,-500.0,0.00019689,2]
[356708344,1742999433439,-500.0,0.00019689,2]
[356708345,1742999433449,-500.0,0.00019689,2]
[356708346,1742999433459,-500.0,0.00019689,2]
[356708347,1742999433469,-500.0,0.00019689,2]
[356708348,1742999433479,-500.0,0.00019689,2]
[356708349,1742999433490,-500.0,0.00019689,2]
[356708350,1742999433500,-500.0,0.00019689,2]
[356708351,1742999433510,-500.0,0.00019689,2]
[356708352,1742999433521,-500.0,0.00019689,2]
[356708353,1742999433530,-500.0,0.00019689,2]
[356708354,1742999433540,-640.13873084,0.00019689,2]
[356708355,1742999433551,-500.0,0.00019689,2]
[356708356,1742999433560,-500.0,0.00019689,2]
[356708357,1742999433570,-500.0,0.00019689,2]
[356708358,1742999433580,-500.0,0.00019689,2]
[356708359,1742999433593,-500.0,0.00019689,2]
[356708360,1742999433603,-500.0,0.00019689,2]
[356708361,1742999433612,-500.0,0.00019689,2]
[356708362,1742999433623,-500.0,0.00019689,2]
[356708363,1742999433632,-500.0,0.00019689,2]
[356708364,1742999433642,-500.0,0.00019689,2]
[356708365,1742999433652,-500.0,0.00019689,2]
[356708366,1742999433662,-500.0,0.00019689,2]
[356708367,1742999433672,-500.0,0.00019689,2]
[356708368,1742999433683,-500.0,0.00019689,2]
[356708369,1742999433692,-500.0,0.00019689,2]
[356708370,1742999433702,-500.0,0.00019689,2]
[356708371,1742999433713,-500.0,0.00019689,2]
[356708372,1742999433723,-500.0,0.00019689,2]
[356708373,1742999433733,-500.0,0.00019689,2]
[356708374,1742999433743,-500.0,0.00019689,2]
[356708375,1742999433753,-500.0,0.00019689,2]
[356708376,1742999433763,-500.0,0.00019689,2]
[356708377,1742999433773,-500.0,0.00019689,2]
[356708378,1742999433783,-500.0,0.00019689,2]
[356708379,1742999433793,-500.0,0.00019689,2]
[356708380,1742999433812,-500.0,0.00019689,2]
[356708381,1742999433823,-500.0,0.00019689,2]
[356708382,1742999433833,-500.0,0.00019689,2]
[356708383,1742999433846,-614.01387308,0.00019689,2]
[356708384,1742999433856,-500.0,0.00019689,2]
[356708385,1742999433865,-500.0,0.00019689,2]
[356708386,1742999433875,-582.23763677,0.00019689,2]
[356708387,1742999433885,-500.0,0.00019689,2]
[356708388,1742999433895,-500.0,0.00019689,2]
[356708389,1742999433905,-500.0,0.00019689,2]
[356708390,1742999433915,-500.0,0.00019689,2]
[356708391,1742999433925,-500.0,0.00019689,2]
[356708392,1742999433935,-500.0,0.00019689,2]
[356708393,1742999433946,-325.18601159,0.00019689,2]
[356708394,1742999433956,-492.0050339,0.0001969,2]
[356708395,1742999433966,-500.0,0.00019908,2]
[356708396,1742999433976,-386.4,0.00019908,2]
[356708397,1742999433986,-500.0,0.00020182,2]
[356708398,1742999433996,-500.0,0.00020266,2]
[356708399,1742999434006,-5000.0,0.00020266,2]
[356708400,1742999434016,-500.0,0.00020366,2]
[356708401,1742999434026,-500.0,0.00020366,2]
[356708402,1742999434036,-9663.39247186,0.00020366,2]
[356708403,1742999434047,-500.0,0.00020456,2]
[356708404,1742999434059,-834.83451184,0.00020488,2]
[356708405,1742999434069,-160.0,0.00020488,2]
[356708406,1742999434079,-6769.21634078,0.0002061,2]
[356708407,1742999434094,-500.0,0.0002064,2]
[356708408,1742999434103,-159.19,0.00020641,2]
[356708409,1742999434112,-600.0,0.00020668,2]
[356708410,1742999434122,-500.0,0.00020672,2]
[356708411,1742999434132,-152.3088784,0.00020679,2]
[356708412,1742999434142,-355.38738292,0.00020679,2]
[356708413,1742999434151,-500.0,0.00020684,2]
[356708414,1742999434160,-516.17,0.00020684,2]
[356708415,1742999434171,-500.0,0.00020684,2]
[356708416,1742999434181,-500.0,0.00020684,2]
[356708417,1742999434190,-500.0,0.00020684,2]
[356708418,1742999434200,-500.0,0.00020684,2]
[356708419,1742999434210,-609.55416065,0.00020684,2]
[356708420,1742999434220,-387.71319635,0.00020684,2]
[356708421,1742999434230,-500.0,0.00020686,2]
[356708422,1742999434240,-275.44253373,0.00020686,2]
[356708423,1742999434250,-622.2,0.00020723,2]
[356708424,1742999434261,-165.41258985,0.0002073,2]
[356708425,1742999434271,-500.0,0.00020744,2]
[356708426,1742999434281,-500.0,0.00020744,2]
[356708427,1742999434291,-500.0,0.00020744,2]
[356708428,1742999434300,-500.0,0.00020744,2]
[356708429,1742999434310,-500.0,0.00020744,2]
[356708430,1742999434319,-500.0,0.00020744,2]
[356708431,1742999434329,-500.0,0.00020744,2]
[356708432,1742999434340,-500.0,0.00020744,2]
[356708433,1742999434352,-500.0,0.00020744,2]
[356708434,1742999434361,-645.2214,0.00020778,2]
[356708435,1742999434371,-669.0945918,0.00020833,2]
[356708436,1742999434382,-166.15,0.00020881,3]
[356708437,1742999434392,-498.49,0.00020881,3]
[356708438,1742999434402,-1077.56878246,0.00020888,2]
[356708439,1742999434412,-500.0,0.00020946,2]
[356708440,1742999434422,-500.0,0.00020958,2]
[356708441,1742999434432,-500.0,0.00021118,2]
[356708442,1742999434442,-339.05875336,0.00021118,2]
[356708443,1742999434451,-500.0,0.00021154,2]
[356708444,1742999434460,-500.0,0.0002122,2]
[356708445,1742999434470,-500.0,0.00021232,2]
[356708446,1742999434479,-500.0,0.00021494,2]
[356708447,1742999434488,-500.0,0.00021506,2]
[356708448,1742999434498,-1010.65123942,0.00021668,2]
[356708449,1742999434509,-332.31,0.0002176,3]
[356708450,1742999434519,-236.40155756,0.00021768,2]
[356708451,1742999434528,-664.61,0.0002177,3]
[356708452,1742999434538,-268.81,0.0002178,2]
[356708453,1742999434547,-332.3,0.00022251,3]
[356708454,1742999434557,-4717.3655119,0.0002296,2]
[356708455,1742999434567,-33763.055057,0.0002296,2]
[356708456,1742999434577,-391.591,0.00023035,2]
[356708457,1742999434587,-664.62,0.0002313,3]
[356708458,1742999434600,-1329.22,0.0002314,3]
[356708459,1742999434610,-1293.0482043,0.00023192,2]
[356708460,1742999434619,-251328.59690602,0.000249,2]
[356708502,1742999438540,-3305.81447185,0.000249,2]
[356708505,1742999438577,-27226.05971261,0.000249,2]
[356708523,1742999438709,-88.15073252,0.000249,2]
[356708526,1742999438719,-1641.60584221,0.00026,30]
[356708528,1742999438728,-1000.0,0.00026223,2]
[356708530,1742999438738,-1000.0,0.00026223,2]
[356708532,1742999438748,-1000.0,0.00026223,2]
[356708534,1742999438757,-1000.0,0.00026223,2]
[356708535,1742999438767,-1000.0,0.00026223,2]
[356708536,1742999438776,-421.72740306,0.00026223,2]
[356708537,1742999438785,-1000.0,0.00026223,2]
[356708538,1742999438794,-1000.0,0.00026223,2]
[356708540,1742999438804,-3504.584,0.00026545,2]
[356708541,1742999438813,-1000.0,0.00026597,2]
[356708542,1742999438823,-786.58512626,0.00026633,2]
[356708543,1742999438833,-416.66816918,0.00027397,14]
[356708544,1742999438843,-179.10971331,0.00029,7]
[356708545,1742999438853,-179.10971331,0.00029,7]
[356708546,1742999438862,-500.0,0.00032877,2]
[356708547,1742999438872,-500.0,0.00032877,2]
[356708548,1742999438882,-168.70186889,0.0003473,5]
[356708549,1742999438892,-3242.69643096,0.00034731,2]
[356708550,1742999438901,-84859.3764114,0.00034808,2]
[356708551,1742999438913,-324.31659001,0.00034808,2]
[356708598,1742999440943,-359.604,0.00024651,2]
[356708601,1742999440956,-1258.26715106,0.00024651,2]
[356708603,1742999440966,-757.53284887,0.00034808,2]
[356708760,1742999443926,-500.0,0.00020672,2]
[356708761,1742999443936,-493.35,0.00020946,2]
[356708762,1742999443945,-254.80011587,0.000259,4]
[356708763,1742999443955,-254.8001157,0.00026728,4]
[356708764,1742999443964,-254.8001157,0.00027555,4]
[356708765,1742999443973,-254.8001157,0.00028383,5]
[356708766,1742999443983,-254.8001157,0.0002921,5]
[356708767,1742999443992,-145.6309598,0.00034808,2]
[356708774,1742999446637,-254.8001157,0.00030038,5]
[356708775,1742999446648,-254.8001157,0.00030866,5]
[356708776,1742999446658,-254.8001157,0.00031693,6]
[356708777,1742999446668,-254.8001157,0.00032521,6]
[356708778,1742999446679,-99.4503507,0.00034808,2]
[356708779,1742999446692,-1990.0,0.00034808,2]
[356708780,1742999446704,-193772.31466222,0.00034808,2]
[356708781,1742999446714,-63480.92413837,0.00034818,2]
[356708782,1742999446725,-500.0,0.00034873,5]
[356708783,1742999446735,-500.0,0.00034873,5]
[356708784,1742999446744,-500.0,0.00034873,5]
[356708785,1742999446754,-500.0,0.00034873,5]
[356708786,1742999446764,-500.0,0.00034873,5]
[356708787,1742999446774,-200.0,0.000352,120]
[356708788,1742999446783,-200.0,0.000352,120]
[356708789,1742999446793,-707.33,0.00036,120]
[356708790,1742999446802,-281948.621823,0.0003603,3]
[356708791,1742999446812,-160.0,0.0003603,3]
[356708792,1742999446821,-418.40181814,0.0003603,3]
[356708793,1742999446832,-500.0,0.0003604,5]
[356708794,1742999446842,-1500.0,0.00036242,5]
[356708795,1742999446854,-1500.0,0.00036242,5]
[356708798,1742999446864,-1500.0,0.00036242,5]
[356708800,1742999446874,-1500.0,0.00036242,5]
[356708802,1742999446884,-1500.0,0.00036242,5]
[356708803,1742999446894,-1500.0,0.00036242,5]
[356708804,1742999446905,-1500.0,0.00036242,5]
[356708805,1742999446914,-1500.0,0.00036616,2]
[356708806,1742999446924,-160.0,0.00036947,3]
[356708807,1742999446934,-200.0,0.000372,120]
[356708808,1742999446944,-200.0,0.000372,120]
[356708809,1742999446953,-1000.0,0.00038,14]
[356708810,1742999446963,-1000.0,0.000385,3]
[356708811,1742999446973,-703.8567406,0.00038799,4]
[356708812,1742999446982,-500.0,0.0003881,5]
[356708813,1742999446992,-418.40181814,0.00038827,2]
[356708814,1742999447002,-1000.0,0.000392,3]
[356708815,1742999447011,-200.0,0.000392,120]
[356708816,1742999447021,-200.0,0.000392,120]
[356708817,1742999447030,-322000.0,0.0003978,2]
[356708818,1742999447040,-153.202114,0.0003988,14]
[356708819,1742999447054,-1000.0,0.0003995,7]
[356708821,1742999447063,-1000.0,0.0003995,7]
[356708823,1742999447073,-1000.0,0.0003995,7]
[356708825,1742999447081,-1000.0,0.0003995,7]
[356708826,1742999447092,-1000.0,0.0003995,7]
[356708828,1742999447104,-1000.0,0.0003995,7]
[356708830,1742999447113,-1000.0,0.0003995,7]
[356708832,1742999447122,-1000.0,0.0003995,7]
[356708833,1742999447133,-1000.0,0.0003995,7]
[356708835,1742999447142,-1000.0,0.0003995,7]
[356708837,1742999447152,-160.0,0.0003995,7]
[356708838,1742999447160,-418.40181814,0.0003995,7]
[356708840,1742999447170,-500.0,0.00039973,5]
[356708841,1742999447180,-50000.0,0.0004,15]
[356708842,1742999447189,-528.0,0.0004,14]
[356708843,1742999447198,-500.0,0.0004,15]
[356708844,1742999447211,-175642.4629,0.0004,10]
[356708845,1742999447222,-7500.29201108,0.0004,2]
[356708846,1742999447232,-2000.0,0.0004,15]
[356708847,1742999447242,-2000.0,0.0004,15]
[356708848,1742999447252,-600.0,0.0004,14]
[356708849,1742999447261,-522.46576798,0.0004,14]
[356708850,1742999447271,-500.0,0.0004,7]
[356708851,1742999447281,-2000.0,0.0004,26]
[356708852,1742999447290,-151.0,0.0004,14]
[356708853,1742999447300,-151.0,0.0004,14]
[356708854,1742999447310,-1000.0,0.0004,60]
[356708855,1742999447320,-1150.0,0.0004,30]
[356708856,1742999447331,-160.0,0.0004,10]
[356708857,1742999447340,-418.40181814,0.0004,10]
[356708858,1742999447356,-1000.0,0.00040352,5]
[356708859,1742999447369,-1000.0,0.00040352,5]
[356708860,1742999447381,-1082.17639635,0.00040352,5]
[356708861,1742999447394,-1104.78782401,0.00040352,5]
[356708862,1742999447406,-1000.0,0.00040352,5]
[356708863,1742999447417,-2000.0,0.00041,28]
[356708864,1742999447430,-500.0,0.00041095,2]
[356708865,1742999447442,-500.0,0.00041095,2]
[356708866,1742999447454,-500.0,0.00041095,2]
[356708867,1742999447464,-500.0,0.00041095,2]
[356708868,1742999447474,-500.0,0.00041095,2]
[356708869,1742999447484,-500.0,0.00041095,2]
[356708870,1742999447496,-500.0,0.00041095,2]
[356708871,1742999447508,-500.0,0.00041095,2]
[356708872,1742999447518,-500.0,0.00041095,2]
[356708873,1742999447529,-500.0,0.00041095,2]
[356708874,1742999447540,-500.0,0.00041095,2]
[356708875,1742999447552,-500.0,0.00041095,2]
[356708876,1742999447563,-500.0,0.00041095,2]
[356708877,1742999447574,-500.0,0.00041095,2]
[356708878,1742999447584,-500.0,0.00041095,2]
[356708879,1742999447596,-522.91930003,0.00041095,2]
[356708880,1742999447607,-423.83264456,0.00041095,20]
[356708881,1742999447618,-258.26101055,0.00041096,10]
[356708882,1742999447628,-200.0,0.000412,120]
[356708883,1742999447640,-200.0,0.000412,120]
[356708884,1742999447653,-500.0,0.00041211,2]
[356708885,1742999447665,-1000.0,0.00041519,10]
[356708886,1742999447677,-1610.2501239,0.000418,120]
[356708887,1742999447689,-100000.0,0.000419,7]
[356708888,1742999447701,-418.40181814,0.000419,7]
[356708889,1742999447712,-200.0,0.00041973,10]
[356708890,1742999447723,-398.68012329,0.0004198,2]
[356708891,1742999447735,-160.0,0.0004199,4]
[356708892,1742999447745,-268.6722147,0.0004199,5]
[356708893,1742999447756,-340.0,0.00042,10]
[356708894,1742999447771,-1150.0,0.00042,14]
[356708895,1742999447782,-218.22204289,0.00042,20]
[356708896,1742999447793,-2000.0,0.000425,15]
[356708897,1742999447805,-3000.0,0.000426,10]
[356708898,1742999447816,-9646.90364971,0.00043,7]
[356708899,1742999447828,-9646.90364971,0.00043,7]
[356708900,1742999447839,-5021.67135008,0.00043,7]
[356708901,1742999447852,-5021.67135008,0.00043,7]
[356708902,1742999447863,-1521.01898758,0.00043,7]
[356708903,1742999447875,-1521.01898758,0.00043,7]
[356708904,1742999447884,-55150.61499245,0.00043,7]
[356708905,1742999447900,-106579.07413763,0.00043,7]
[356708906,1742999447913,-60125.96407838,0.00043,7]
[356708907,1742999447925,-8436.1029161,0.00043,7]
[356708908,1742999492124,154.43233188,0.0001524,120]
[356708915,1742999921413,-207.9988918,0.000109,2]
[356708916,1742999921435,-200.0,0.00011,3]
[356708917,1742999921458,-200.0,0.00011,3]
[356708918,1742999921489,-834.83451184,0.00019221,2]
[356708919,1742999921517,-418.40181814,0.00019228,2]
[356708920,1742999921539,-5000.0,0.00019261,2]
[356708921,1742999921560,-300.0,0.00019359,2]
[356708922,1742999921582,-294.84569983,0.0001936,2]
[356708923,1742999921602,-500.0,0.0001936,2]
[356708924,1742999921623,-500.0,0.00019425,2]
[356708925,1742999921644,-200.42298951,0.00019634,2]
[356708926,1742999921667,-533.62815503,0.000199,2]
[356708927,1742999921688,-300.0,0.0002,8]
[356708928,1742999921712,-500.0,0.00020683,2]
[356708929,1742999921734,-301.59176081,0.00020684,2]
[356708930,1742999921757,-533.62815476,0.00020934,2]
[356708931,1742999921779,-300.0,0.00021094,2]
[356708932,1742999921802,-195.227412,0.00021318,2]
[356708933,1742999921825,-533.62815476,0.00021969,3]
[356708934,1742999921847,-195.227412,0.0002217,2]
[356708935,1742999921870,-533.62815476,0.00023003,3]
[356708936,1742999921892,-533.62815476,0.00024038,3]
[356708937,1742999921915,-533.62815476,0.00025072,4]
[356708938,1742999921937,-500.0,0.0002535,2]
[356708939,1742999921962,-181.50692532,0.0002535,2]
[356708940,1742999921984,-400.0,0.00025437,2]
[356708941,1742999922011,-500.0,0.00026095,2]
[356708942,1742999922033,-500.0,0.00026095,2]
[356708943,1742999922057,-189.08660835,0.00026095,2]
[356708944,1742999922080,-500.0,0.00026095,2]
[356708945,1742999922102,-355.42407727,0.00026095,2]
[356708946,1742999922123,-500.0,0.00026095,2]
[356708947,1742999922145,-500.0,0.00026095,2]
[356708948,1742999922168,-500.0,0.00026095,2]
[356708949,1742999922188,-500.0,0.00026095,2]
[356708950,1742999922217,-500.0,0.00026095,2]
[356708951,1742999922238,-500.0,0.00026095,2]
[356708952,1742999922262,-500.0,0.00026095,2]
[356708953,1742999922283,-271.06807981,0.00026095,2]
[356708954,1742999922307,-500.0,0.00026095,2]
[356708955,1742999922329,-500.0,0.00026095,2]
[356708956,1742999922351,-500.0,0.00026095,2]
[356708957,1742999922372,-500.0,0.00026095,2]
[356708958,1742999922394,-298.21372375,0.00026095,2]
[356708959,1742999922415,-500.0,0.00026095,2]
[356708960,1742999922436,-524.34984164,0.00026095,2]
[356708961,1742999922461,-24.6313191,0.00026095,2]
[356708966,1743000440139,-160.0,0.00019168,2]
[356708967,1743000440161,-500.0,0.000198,2]
[356708968,1743000440182,-418.40181814,0.00020541,2]
[356708969,1743000440203,-124.55008151,0.00020541,2]
[356708971,1743000545193,-163.28829001,0.00010959,2]
[356708972,1743000550145,-18.03478399,0.00010959,2]
[356708997,1743000631848,-418.40181814,0.00020515,2]
[356708999,1743000631858,-834.83451184,0.00020515,2]
[356709001,1743000631868,-160.0,0.00020524,2]
[356709003,1743000631877,-5000.0,0.00020584,2]
[356709005,1743000631887,-500.0,0.00022958,2]
[356709007,1743000631896,-5187.134391,0.00023058,2]
[356709009,1743000631905,-4087.83,0.00025,7]
[356709011,1743000631915,-500.0,0.00025221,2]
[356709013,1743000631924,-280.48331574,0.00025221,2]
[356709015,1743000631934,-500.0,0.00025221,2]
[356709017,1743000631943,-196.7853422,0.00025221,2]
[356709019,1743000631952,-500.0,0.00025221,2]
[356709020,1743000631962,-500.0,0.00025221,2]
[356709022,1743000631971,-500.0,0.00025221,2]
[356709024,1743000631980,-500.0,0.00025221,2]
[356709026,1743000631990,-500.0,0.00025221,2]
[356709028,1743000631999,-500.0,0.00025221,2]
[356709031,1743000632008,-500.0,0.00025221,2]
[356709032,1743000632019,-500.0,0.00025221,2]
[356709034,1743000632028,-500.0,0.00025221,2]
[356709036,1743000632037,-500.0,0.00025221,2]
[356709039,1743000632046,-407.65318519,0.00025221,2]
[356709040,1743000632055,-500.0,0.00025221,2]
[356709042,1743000632064,-500.0,0.00025221,2]
[356709045,1743000632073,-500.0,0.00025221,2]
[356709046,1743000632082,-500.0,0.00025221,2]
[356709048,1743000632092,-500.0,0.00025221,2]
[356709051,1743000632101,-500.0,0.00025221,2]
[356709053,1743000632111,-24900.0,0.00025222,2]
[356709055,1743000632120,-650.57788404,0.00025337,2]
[356709057,1743000632129,-833.35,0.00026096,3]
[356709059,1743000632139,-833.35,0.0002637,3]
[356709061,1743000632148,-833.35,0.00026644,3]
[356709063,1743000632157,-833.35,0.00026918,3]
[356709065,1743000632166,-833.35,0.00027192,3]
[356709067,1743000632175,-500.0,0.0002722,2]
[356709069,1743000632184,-500.0,0.0002722,2]
[356709071,1743000632192,-500.0,0.0002722,2]
[356709072,1743000632202,-500.0,0.0002722,2]
[356709074,1743000632211,-500.0,0.0002722,2]
[356709076,1743000632222,-500.0,0.0002722,2]
[356709078,1743000632231,-500.0,0.0002722,2]
[356709080,1743000632240,-500.0,0.0002732,2]
[356709082,1743000632250,-299.16986614,0.00027389,2]
[356709085,1743000632259,-500.0,0.00027397,14]
[356709086,1743000632269,-833.35,0.00027466,3]
[356709088,1743000632278,-833.35,0.0002774,3]
[356709090,1743000632287,-833.35,0.00028013,3]
[356709093,1743000632297,-250.0,0.0002821,2]
[356709094,1743000632306,-833.35,0.00028287,3]
[356709096,1743000632315,-833.35,0.00028561,3]
[356709098,1743000632324,-500.0,0.00028783,5]
[356709100,1743000632333,-833.35,0.00028835,3]
[356709102,1743000632342,-650.577884,0.00028846,2]
[356709104,1743000632351,-833.35,0.00029109,3]
[356709106,1743000632360,-833.35,0.00029383,3]
[356709108,1743000632369,-833.35,0.00029657,3]
[356709110,1743000632378,-833.35,0.00029931,3]
[356709112,1743000632387,-267.0,0.0003,2]
[356709114,1743000632397,-1904.0,0.0003,14]
[356709116,1743000632406,-1905.0,0.0003,14]
[356709118,1743000632414,-1904.0,0.0003,14]
[356709120,1743000632423,-833.35,0.00030205,3]
[356709122,1743000632434,-833.35,0.00030479,3]
[356709125,1743000632445,-833.35,0.00030753,3]
[356709126,1743000632457,-833.35,0.00031027,3]
[356709128,1743000632468,-833.35,0.00031301,3]
[356709130,1743000632478,-833.35,0.00031575,3]
[356709132,1743000632487,-833.35,0.00031849,3]
[356709133,1743000632499,-833.35,0.00032123,3]
[356709134,1743000632509,-650.577884,0.00032355,2]
[356709135,1743000632520,-833.40814613,0.00032397,3]
[356709136,1743000632530,-1000.0,0.00032699,5]
[356709137,1743000632539,-1000.0,0.00032699,5]
[356709138,1743000632549,-1000.0,0.00032699,5]
[356709139,1743000632561,-900.91914754,0.00032699,5]
[356709140,1743000632572,-1000.0,0.00032699,5]
[356709141,1743000632583,-1000.0,0.00032699,5]
[356709142,1743000632595,-1000.0,0.00032699,5]
[356709143,1743000632607,-2161.79762064,0.00032777,2]
[356709144,1743000632618,-1000.0,0.00032799,2]
[356709145,1743000632630,-302.0,0.00032847,2]
[356709146,1743000632641,-600.0,0.00032847,2]
[356709148,1743000632652,-15000.0,0.00032877,5]
[356709150,1743000632661,-247.9,0.0003299,3]
[356709152,1743000632671,-247.9,0.0003299,3]
[356709154,1743000632682,-5000.00000099,0.00033,2]
[356709156,1743000632693,-267.0,0.00033,2]
[356709158,1743000632704,-160.0,0.00034053,2]
[356709160,1743000632715,-1000.0,0.00034263,5]
[356709163,1743000632726,-495.8,0.0003436,3]
[356709165,1743000632736,-495.8,0.0003436,3]
[356709167,1743000632746,-200.0,0.000352,120]
[356709169,1743000632757,-218.20011272,0.00035616,2]
[356709171,1743000632768,-650.577884,0.00035864,2]
[356709173,1743000632779,-500.0,0.0003589,2]
[356709174,1743000632790,-267.0,0.00036,2]
[356709175,1743000632802,-4684.06293336,0.000362,98]
[356709176,1743000632813,-4684.06293332,0.000362,98]
[356709177,1743000632824,-4684.06293332,0.00036269,98]
[356709178,1743000632834,-200.0,0.000372,120]
[356709179,1743000632846,-418.40181814,0.00037653,3]
[356709180,1743000632857,-500.0,0.00037673,5]
[356709181,1743000632869,-5000.0,0.00038,120]
[356709182,1743000632880,-15000.0,0.00038356,5]
[356709183,1743000632891,-161.766,0.00038458,51]
[356709184,1743000632902,-5000.0,0.00039,120]
[356709185,1743000632913,-418.40181814,0.00039,120]
[356709186,1743000632923,-650.577884,0.00039373,2]
[356709187,1743000632934,-223.02351843,0.000399,2]
[356709188,1743000632945,-895.0,0.0004,26]
[356709189,1743000632956,-5000.0,0.0004,120]
[356709190,1743000632968,-359.87,0.0004,5]
[356709191,1743000632979,-500.0,0.0004,15]
[356709192,1743000632989,-500.0,0.0004,15]
[356709193,1743000633000,-500.0,0.00040322,5]
[356709194,1743000633011,-500.0,0.00040322,5]